bitfinex/quotes_BTCUSD_20250512
["timestamp","ask_amount","ask_price","bid_price","bid_amount"]
[1747060883402,0.19885414,103390.0,103380.0,0.35916852]
[1747060883642,0.19885414,103390.0,103380.0,0.15603456]
[1747060883861,0.19885414,103390.0,103380.0,1.03581421]
[1747060883862,0.2181979,103390.0,103380.0,1.03581421]
[1747060884262,0.2181979,103390.0,103380.0,1.04548707]
[1747060884494,0.2181979,103390.0,103380.0,0.69916852]
[1747060884710,0.00541184,103390.0,103380.0,3.70802057]
[1747060884919,0.00541184,103390.0,103380.0,3.73137157]
[1747060885175,0.2320865,103410.0,103400.0,0.4046]
[1747060885386,0.22241691,103410.0,103400.0,0.60769476]
[1747060885644,0.21274704,103410.0,103400.0,0.61736584]
[1747060885856,0.20307689,103410.0,103400.0,0.4046]
[1747060886076,0.20307689,103410.0,103400.0,0.3722]
[1747060886521,0.20307689,103410.0,103400.0,0.56562359]
[1747060886731,0.19344038,103420.0,103410.0,0.19340489]
[1747060886949,0.01933964,103410.0,103400.0,0.62543626]
[1747060887183,0.22241393,103410.0,103400.0,1.40556026]
[1747060887380,0.02900866,103410.0,103400.0,1.85017408]
[1747060887658,0.24175441,103410.0,103400.0,1.73661356]
[1747060887896,0.03867928,103410.0,103400.0,1.38004308]
[1747060888149,0.24175441,103410.0,103400.0,1.38504308]
[1747060888430,0.00966865,103420.0,103410.0,0.27534434]
[1747060888670,0.03867582,103420.0,103410.0,1.28683309]
[1747060888901,0.23206266,103420.0,103410.0,0.79349709]
[1747060889360,0.23206266,103420.0,103410.0,0.80316696]
[1747060889588,0.23206266,103420.0,103410.0,0.79349709]
[1747060889815,0.2127247,103420.0,103410.0,0.60667513]
[1747060890046,0.20305549,103420.0,103410.0,0.341]
[1747060890538,0.20305549,103420.0,103410.0,0.001]
[1747060890793,0.73645064,103420.0,103410.0,0.001]
[1747060891020,0.37645064,103420.0,103410.0,0.001]
[1747060891255,0.38645064,103420.0,103410.0,0.001]
[1747060891491,0.81232004,103420.0,103410.0,0.001]
[1747060892609,0.37945064,103420.0,103410.0,0.001]
[1747060892835,0.30190979,103420.0,103410.0,0.001]
[1747060893037,0.22243599,103400.0,103390.0,0.60451393]
[1747060893304,0.20309467,103400.0,103390.0,0.4014]
[1747060893501,0.20309467,103400.0,103390.0,0.41107211]
[1747060893706,0.20309467,103400.0,103390.0,0.60451441]
[1747060893863,0.20309467,103400.0,103390.0,0.41107211]
[1747060894251,0.20309467,103400.0,103390.0,0.60451441]
[1747060894544,0.20309467,103400.0,103390.0,1.00451441]
[1747060894750,0.20309467,103400.0,103390.0,0.8014]
[1747060894975,0.20309467,103400.0,103390.0,0.4024]
[1747060895207,0.20309467,103400.0,103390.0,0.3721]
[1747060895421,0.20309467,103400.0,103390.0,0.341]
[1747060896040,0.20309467,103400.0,103390.0,0.001]
[1747060897667,0.20309467,103400.0,103390.0,0.341]
[1747060897867,0.20309467,103400.0,103390.0,0.4055]
[1747060898276,0.21276547,103400.0,103390.0,1.04415546]
[1747060898477,0.21276547,103400.0,103390.0,0.62795807]
[1747060898654,0.22243664,103400.0,103390.0,0.63762971]
[1747060898862,0.01934132,103400.0,103390.0,0.6473007]
[1747060899041,0.2224359,103400.0,103390.0,0.62795769]
[1747060899243,0.2224359,103400.0,103390.0,0.73348354]
[1747060899448,0.23210707,103400.0,103390.0,0.73348354]
[1747060899869,0.23716369,103400.0,103390.0,0.72381199]
[1747060900195,0.04373963,103400.0,103390.0,1.65378945]
[1747060900491,0.04373945,103400.0,103390.0,1.15461845]
[1747060900690,0.02439775,103400.0,103390.0,1.15461845]
[1747060900933,0.02439794,103400.0,103390.0,1.58048785]
[1747060901084,0.03406883,103400.0,103390.0,1.58048785]
[1747060901455,0.01472714,103400.0,103390.0,1.58048785]
[1747060901665,0.01472695,103400.0,103390.0,1.58048785]
[1747060901860,0.02439738,103400.0,103390.0,1.58048785]
[1747060902056,0.03406799,103400.0,103390.0,1.58048785]
[1747060902380,0.01472695,103400.0,103390.0,1.58048785]
[1747060902564,0.02439756,103400.0,103390.0,1.58048785]
[1747060902900,0.03406827,103400.0,103390.0,1.58048785]
[1747060903106,0.04373897,103400.0,103390.0,1.15461845]
[1747060903308,0.2274927,103400.0,103390.0,0.70446862]
[1747060903706,0.2274927,103400.0,103390.0,1.10446862]
[1747060903985,0.2081512,103400.0,103390.0,0.9013543]
[1747060904130,0.2081512,103400.0,103390.0,1.1978226]
[1747060904331,0.19848021,103400.0,103390.0,0.341]
[1747060904541,0.19848021,103400.0,103390.0,0.001]
[1747060904933,0.19848021,103400.0,103390.0,0.341]
[1747060905746,0.29433451,103400.0,103390.0,0.001]
[1747060905962,0.20311422,103390.0,103380.0,0.01265562]
[1747060906146,0.20313387,103380.0,103370.0,0.34]
[1747060906548,0.20821381,103380.0,103370.0,0.34]
[1747060907189,0.21788658,103380.0,103370.0,0.53347973]
[1747060907426,0.20821381,103380.0,103370.0,0.87016443]
[1747060907617,0.20821381,103380.0,103370.0,0.88183841]
[1747060907835,0.20821381,103380.0,103370.0,0.9566122]
[1747060908051,0.20821381,103380.0,103370.0,0.96896137]
[1747060908249,0.20821381,103380.0,103370.0,0.97863498]
[1747060908407,0.20821381,103380.0,103370.0,0.95928748]
[1747060909055,0.20821381,103380.0,103370.0,0.96128748]
[1747060909250,0.19854095,103380.0,103370.0,0.35634907]
[1747060909798,0.19854095,103380.0,103370.0,0.35303377]
[1747060910003,0.19854095,103380.0,103370.0,0.21950269]
[1747060910423,0.19854095,103380.0,103370.0,0.90586109]
[1747060910833,0.19854095,103380.0,103370.0,0.5498288]
[1747060911222,0.19854095,103380.0,103370.0,0.55950278]
[1747060911430,0.02442538,103380.0,103370.0,0.96866118]
[1747060911639,0.22755934,103380.0,103370.0,0.58950278]
[1747060912056,0.21788676,103380.0,103370.0,0.58950278]
[1747060912254,0.21788676,103380.0,103370.0,0.59917667]
[1747060912785,0.21788676,103380.0,103370.0,0.55950278]
[1747060913717,0.2082139,103380.0,103370.0,0.35634907]
[1747060914534,0.01475261,103380.0,103370.0,1.72934939]
[1747060914799,0.01475214,103380.0,103370.0,1.53573984]
[1747060915087,0.23723098,103380.0,103370.0,1.55871481]
[1747060915286,0.21788677,103380.0,103370.0,0.45220337]
[1747060915489,0.21788677,103380.0,103370.0,0.35634907]
[1747060915713,0.01934712,103370.0,103360.0,1.04813518]
[1747060915890,0.01934694,103370.0,103360.0,1.96617178]
[1747060916052,0.02431926,103370.0,103360.0,1.68213848]
[1747060916241,0.03399305,103370.0,103360.0,1.57131348]
[1747060916441,0.01464565,103370.0,103360.0,1.57131348]
[1747060916648,0.02431916,103370.0,103360.0,1.57131348]
[1747060916850,0.02431916,103370.0,103360.0,1.57531348]
[1747060917119,0.01464555,103370.0,103360.0,1.57531348]
[1747060917349,0.02431906,103370.0,103360.0,1.57931348]
[1747060917764,0.02431906,103370.0,103360.0,1.41457048]
[1747060917990,0.02431906,103370.0,103360.0,1.36367497]
[1747060918364,0.02431906,103370.0,103360.0,1.44154901]
[1747060918365,0.00497232,103370.0,103360.0,1.44154901]
[1747060918569,0.02431888,103370.0,103360.0,1.44154901]
[1747060918770,0.03399258,103370.0,103360.0,1.44154901]
[1747060918969,0.02431879,103370.0,103360.0,1.44154901]
[1747060919348,0.00497232,103370.0,103360.0,2.11823371]
[1747060919753,0.00497232,103370.0,103360.0,1.78154901]
[1747060919955,0.02431888,103370.0,103360.0,1.6940008]
[1747060920163,0.02431879,103370.0,103360.0,1.6940008]
[1747060920565,0.23714582,103370.0,103360.0,1.66497727]
[1747060920770,0.23714582,103370.0,103360.0,0.99829245]
[1747060920771,0.21779935,103370.0,103360.0,0.99829245]
[1747060920938,0.21779935,103370.0,103360.0,1.21114046]
[1747060921288,0.20812584,103370.0,103360.0,1.53815052]
[1747060921845,0.20812584,103370.0,103360.0,1.54782525]
[1747060922050,0.20812584,103370.0,103360.0,0.80763815]
[1747060922271,0.20812584,103370.0,103360.0,0.03509915]
[1747060922473,0.20812584,103370.0,103360.0,0.24794734]
[1747060922727,0.21779935,103370.0,103360.0,0.75975477]
[1747060922932,0.02431962,103370.0,103360.0,0.73912941]
[1747060923138,0.21779935,103370.0,103360.0,0.76942903]
[1747060923344,0.00497232,103370.0,103360.0,1.28951596]
[1747060923516,0.01464555,103370.0,103360.0,0.95283126]
[1747060923773,0.02431897,103370.0,103360.0,1.17190922]
[1747060923974,0.02431897,103370.0,103360.0,1.51216822]
[1747060924180,0.02431897,103370.0,103360.0,1.85216822]
[1747060924181,0.01464555,103370.0,103360.0,1.85216822]
[1747060924379,0.01464565,103370.0,103360.0,1.85216822]
[1747060924582,0.02431906,103370.0,103360.0,1.85216822]
[1747060924765,0.02431888,103370.0,103360.0,1.40028051]
[1747060925024,0.04366609,103370.0,103360.0,1.57092147]
[1747060925232,0.05333988,103370.0,103360.0,1.60252147]
[1747060925711,0.02431888,103370.0,103360.0,1.69837577]
[1747060925941,0.0339923,103370.0,103360.0,1.69837577]
[1747060926155,0.0533396,103370.0,103360.0,1.69837577]
[1747060927194,0.24681999,103370.0,103360.0,1.46226051]
[1747060927393,0.21779973,103370.0,103360.0,1.0950823]
[1747060927618,0.21779973,103370.0,103360.0,2.08761031]
[1747060927878,0.21779973,103370.0,103360.0,1.82394531]
[1747060928146,0.21779973,103370.0,103360.0,1.47935331]
[1747060928396,0.03399304,103370.0,103360.0,1.55202757]
[1747060928622,0.05334007,103370.0,103360.0,1.55202757]
[1747060928848,0.2468198,103370.0,103360.0,1.20566861]
[1747060929070,0.22747324,103370.0,103360.0,1.02054716]
[1747060929293,0.20812603,103370.0,103360.0,0.37509915]
[1747060932704,0.20812603,103370.0,103360.0,0.71178385]
[1747060933404,0.20315371,103370.0,103360.0,0.91495712]
[1747060933638,0.22250064,103370.0,103360.0,1.45847892]
[1747060933892,0.24184851,103370.0,103360.0,1.48987892]
[1747060934118,0.23217509,103370.0,103360.0,1.48020476]
[1747060934355,0.22250139,103370.0,103360.0,0.75867891]
[1747060934568,0.22250139,103370.0,103360.0,0.9192507]
[1747060935003,0.2128276,103370.0,103360.0,0.53985797]
[1747060935206,0.2128276,103370.0,103360.0,0.5495327]
[1747060935417,0.20313562,103380.0,103370.0,0.21282703]
[1747060935624,0.01934525,103380.0,103370.0,0.53983822]
[1747060935824,0.22247912,103380.0,103370.0,0.20315352]
[1747060936028,0.21280664,103380.0,103370.0,0.53016443]
[1747060936246,0.21282713,103370.0,103360.0,0.65230899]
[1747060936447,0.21282713,103370.0,103360.0,0.74262933]
[1747060936662,0.21282713,103370.0,103360.0,0.36295624]
[1747060936877,0.21282713,103370.0,103360.0,0.02627154]
[1747060937101,0.21282713,103370.0,103360.0,0.56612942]
[1747060937321,0.21282713,103370.0,103360.0,0.54953233]
[1747060937555,0.21282713,103370.0,103360.0,0.54285788]
[1747060938120,0.21282713,103370.0,103360.0,0.94285788]
[1747060938590,0.21282713,103370.0,103360.0,0.95253252]
[1747060938817,0.21282713,103370.0,103360.0,0.56320706]
[1747060939464,0.20315352,103370.0,103360.0,0.94385788]
[1747060939868,0.21282703,103370.0,103360.0,2.90819324]
[1747060940017,0.22250101,103370.0,103360.0,1.94125099]
[1747060940218,0.22250101,103370.0,103360.0,1.67457099]
[1747060940415,0.2128275,103370.0,103360.0,1.20417001]
[1747060940620,0.2128275,103370.0,103360.0,1.22351928]
[1747060940832,0.2128275,103370.0,103360.0,1.22351938]
[1747060941079,0.2128275,103370.0,103360.0,1.23319392]
[1747060941301,0.0193473,103370.0,103360.0,0.87496837]
[1747060941517,0.19346101,103380.0,103370.0,0.22250083]
[1747060941518,0.00967295,103380.0,103370.0,0.22250083]
[1747060941727,0.22422359,103400.0,103370.0,0.53016443]
[1747060941934,0.23212962,103390.0,103380.0,0.53981866]
[1747060942137,0.21278633,103390.0,103380.0,0.86741866]
[1747060942341,0.20311441,103390.0,103380.0,0.85774571]
[1747060942543,0.20311441,103390.0,103380.0,0.6642847]
[1747060942750,0.20311441,103390.0,103380.0,1.19774571]
[1747060942954,0.21278624,103390.0,103380.0,2.31049771]
[1747060943151,0.21278624,103390.0,103380.0,2.1170367]
[1747060943152,0.20311441,103390.0,103380.0,2.1170367]
[1747060943361,0.20311441,103390.0,103380.0,2.32984371]
[1747060943718,0.20311441,103390.0,103380.0,1.690234]
[1747060943919,0.20311441,103390.0,103380.0,1.0042847]
[1747060944123,0.20311441,103390.0,103380.0,1.0676]
[1747060944339,0.23451441,103390.0,103370.0,0.33727398]
[1747060944518,0.21280664,103380.0,103370.0,0.7634543]
[1747060944952,0.21280664,103380.0,103370.0,0.6676]
[1747060945376,0.21280664,103380.0,103370.0,0.34]
[1747060945992,0.24360664,103380.0,103370.0,0.34]
[1747060946195,0.20315352,103370.0,103360.0,0.35441174]
[1747060947034,0.20315352,103370.0,103360.0,0.69441174]
[1747060947437,0.20315352,103370.0,103360.0,1.03109644]
[1747060948959,0.20315352,103370.0,103360.0,0.69641174]
[1747060949194,0.20315352,103370.0,103360.0,1.03309644]
[1747060949602,0.20315352,103370.0,103360.0,1.03509644]
[1747060950042,0.20315352,103370.0,103360.0,0.69841174]
[1747060950248,0.20315352,103370.0,103360.0,1.03509644]
[1747060950869,0.20315352,103370.0,103360.0,0.69841174]
[1747060953305,0.23425352,103370.0,103360.0,0.35841174]
[1747060954112,0.20315352,103370.0,103360.0,0.35841174]
[1747060956205,0.20315352,103370.0,103360.0,0.69509644]
[1747060957921,0.20315352,103370.0,103360.0,1.03509644]
[1747060958129,0.20315352,103370.0,103360.0,0.69841174]
[1747060958349,0.20315352,103370.0,103360.0,1.03509644]
[1747060960634,0.20315352,103370.0,103360.0,0.69841174]
[1747060960841,0.20315352,103370.0,103360.0,1.03509644]
[1747060961715,0.20315352,103370.0,103360.0,0.69841174]
[1747060963741,0.20315352,103370.0,103360.0,1.03509644]
[1747060964135,0.20315352,103370.0,103360.0,0.69841174]
[1747060964710,0.20315352,103370.0,103360.0,0.37081174]
[1747060965149,0.23395352,103370.0,103360.0,0.35626392]
[1747060965510,0.20315352,103370.0,103360.0,0.35626392]
[1747060967763,0.23505352,103370.0,103360.0,0.35626392]
[1747060968960,0.20315352,103370.0,103360.0,0.69294862]
[1747060969324,0.20315352,103370.0,103360.0,0.96012199]
[1747060969540,0.20315352,103370.0,103360.0,0.75694862]
[1747060969981,0.20315352,103370.0,103360.0,0.69294862]
[1747060970408,0.20315352,103370.0,103360.0,0.35626392]
[1747060970856,0.20315352,103370.0,103360.0,0.01626392]
[1747060970857,0.36020782,103370.0,103360.0,0.01626392]
[1747060971085,0.69689252,103370.0,103360.0,0.004]
[1747060971343,0.72143337,103370.0,103360.0,0.004]
[1747060971567,1.07143337,103370.0,103360.0,0.004]
[1747060972027,0.21290943,103330.0,103320.0,0.43924994]
[1747060972251,0.21290943,103330.0,103320.0,0.02144994]
[1747060972474,0.20325184,103320.0,103310.0,0.32536]
[1747060972675,0.20325184,103320.0,103310.0,0.7612143]
[1747060973085,0.20325184,103320.0,103310.0,0.4212143]
[1747060973835,0.20325184,103320.0,103310.0,0.34896731]
[1747060974263,0.20325184,103320.0,103310.0,0.7037024]
[1747060975473,0.20325184,103320.0,103310.0,1.2989792]
[1747060975667,0.21293022,103320.0,103310.0,1.30865871]
[1747060976083,0.21293022,103320.0,103310.0,1.1053871]
[1747060976285,0.20325184,103320.0,103310.0,1.1053871]
[1747060976515,0.19355463,103330.0,103310.0,1.31833793]
[1747060976724,0.21290915,103330.0,103320.0,2.40778936]
[1747060976943,0.21290915,103330.0,103320.0,2.40778992]
[1747060976944,0.21290981,103330.0,103320.0,2.40778992]
[1747060977175,0.2225865,103330.0,103320.0,2.41746811]
[1747060977392,0.2225865,103330.0,103320.0,2.26768811]
[1747060977611,0.2225865,103330.0,103320.0,1.93100341]
[1747060977829,0.2225865,103330.0,103320.0,2.33100341]
[1747060978064,0.20322957,103340.0,103330.0,0.61570981]
[1747060978065,0.21288864,103340.0,103330.0,0.61570981]
[1747060978289,0.21288864,103340.0,103330.0,2.45614181]
[1747060978290,0.22256524,103340.0,103330.0,2.45614181]
[1747060978519,0.2032256,103350.0,103340.0,0.5528892]
[1747060978739,0.2032256,103350.0,103340.0,1.0645247]
[1747060978989,0.2032256,103350.0,103340.0,1.2580606]
[1747060979187,0.19447973,103370.0,103360.0,0.55284754]
[1747060979188,0.21382732,103370.0,103360.0,0.55284754]
[1747060979400,0.03002091,103370.0,103360.0,2.59910862]
[1747060979610,0.22350111,103370.0,103360.0,2.90676988]
[1747060979798,0.22350111,103370.0,103360.0,1.71313337]
[1747060980021,0.22350111,103370.0,103360.0,2.1228081]
[1747060980213,0.22350111,103370.0,103360.0,2.11313337]
[1747060980445,0.21382741,103370.0,103360.0,1.3248643]
[1747060980646,0.20415362,103370.0,103360.0,1.62230445]
[1747060980913,0.20415362,103370.0,103360.0,1.641654]
[1747060981125,0.20415362,103370.0,103360.0,1.65530445]
[1747060981334,0.20415362,103370.0,103360.0,1.1400847]
[1747060981596,0.20415362,103370.0,103360.0,0.74]
[1747060981806,0.21115362,103370.0,103360.0,0.74]
[1747060981975,0.21115362,103370.0,103360.0,1.0766847]
[1747060982525,0.21115362,103370.0,103360.0,1.27018315]
[1747060982742,0.21115362,103370.0,103360.0,1.1410847]
[1747060982944,0.21115362,103370.0,103360.0,1.1080847]
[1747060983146,0.21115362,103370.0,103360.0,1.31125788]
[1747060983361,0.008,103370.0,103360.0,1.76652215]
[1747060983586,0.008,103370.0,103360.0,3.26767877]
[1747060983785,0.02734656,103370.0,103360.0,3.25721877]
[1747060984004,0.02734656,103370.0,103360.0,2.92053407]
[1747060984204,0.23050083,103370.0,103360.0,2.07717237]
[1747060984416,0.22350083,103370.0,103360.0,2.22276383]
[1747060984624,0.22350083,103370.0,103360.0,2.23443828]
[1747060984836,0.22350083,103370.0,103360.0,1.89775358]
[1747060985050,0.22350083,103370.0,103360.0,2.23443828]
[1747060985892,0.02034712,103370.0,103360.0,2.23443828]
[1747060986097,0.001,103370.0,103360.0,2.99709724]
[1747060986293,0.001,103370.0,103360.0,3.01163809]
[1747060986892,0.001,103370.0,103360.0,5.88539609]
[1747060987369,0.01934665,103370.0,103360.0,3.91711839]
[1747060987707,0.00967323,103370.0,103360.0,3.91711839]
[1747060987985,0.00967323,103370.0,103360.0,4.25380309]
[1747060988386,0.22248119,103380.0,103370.0,0.26835352]
[1747060988618,0.22248119,103380.0,103370.0,1.88238503]
[1747060988831,0.22248119,103380.0,103370.0,1.88238522]
[1747060989182,0.22248119,103380.0,103370.0,2.29205873]
[1747060989386,0.20322109,103400.0,103390.0,0.00967211]
[1747060989591,0.21289217,103400.0,103390.0,0.54947094]
[1747060989801,0.22243664,103400.0,103390.0,0.55914258]
[1747060989981,0.22243664,103400.0,103390.0,0.54947094]
[1747060990386,0.21276584,103400.0,103390.0,0.88947113]
[1747060990829,0.19342359,103400.0,103390.0,0.88947113]
[1747060991039,0.19342359,103400.0,103390.0,0.89914305]
[1747060991250,0.19342359,103400.0,103390.0,2.00663005]
[1747060991462,0.00967099,103400.0,103390.0,1.99621306]
[1747060991660,0.0193417,103400.0,103390.0,1.99621306]
[1747060991921,0.20307494,103410.0,103400.0,0.54309467]
[1747060992122,0.2127449,103410.0,103400.0,1.30774466]
[1747060992299,0.20307494,103410.0,103400.0,1.29807367]
[1747060993116,0.20307494,103410.0,103400.0,1.30774447]
[1747060993321,0.23208435,103410.0,103400.0,1.37791508]
[1747060993523,0.24175459,103410.0,103400.0,1.37791508]
[1747060993731,0.2320851,103410.0,103400.0,1.36824466]
[1747060994167,0.21274471,103410.0,103400.0,2.94688398]
[1747060994377,0.22441486,103410.0,103400.0,2.05140298]
[1747060994583,0.03100997,103410.0,103400.0,2.05140298]
[1747060994792,0.04368021,103410.0,103400.0,2.36329246]
[1747060995007,0.03400931,103410.0,103400.0,2.38263359]
[1747060995205,0.04367946,103410.0,103400.0,2.38263359]
[1747060995972,0.24675459,103410.0,103400.0,2.77296307]
[1747060996843,0.24675459,103410.0,103400.0,2.43627837]
[1747060997019,0.24675459,103410.0,103400.0,2.77296307]
[1747060997267,0.005,103410.0,103400.0,2.77296307]
[1747060997480,0.01466949,103410.0,103400.0,3.11931829]
[1747060997709,0.01466949,103410.0,103400.0,2.78263359]
[1747060997929,0.02433908,103410.0,103400.0,2.78263359]
[1747060998340,0.03400885,103410.0,103400.0,2.78263359]
[1747060998555,0.02433908,103410.0,103400.0,2.78263359]
[1747060998778,0.005,103410.0,103400.0,3.11931829]
[1747060998995,0.02433908,103410.0,103400.0,2.78263359]
[1747060999257,0.03400866,103410.0,103400.0,2.78263359]
[1747060999479,0.02433889,103410.0,103400.0,2.78263359]
[1747060999698,0.04367844,103410.0,103400.0,2.78263359]
[1747060999926,0.24675348,103410.0,103400.0,2.46058659]
[1747061000135,0.04367844,103410.0,103400.0,2.33498859]
[1747061000265,0.05334849,103410.0,103400.0,2.33494859]
[1747061000476,0.02900904,103410.0,103400.0,2.31451259]
[1747061000689,0.03867909,103410.0,103400.0,2.31451259]
[1747061000896,0.02900904,103410.0,103400.0,2.31551259]
[1747061001076,0.01933917,103410.0,103400.0,2.31635259]
[1747061001283,0.02900904,103410.0,103400.0,2.31535259]
[1747061001492,0.02900904,103410.0,103400.0,1.67223259]
[1747061001720,0.03867909,103410.0,103400.0,2.31531259]
[1747061001924,0.02900904,103410.0,103400.0,2.31531259]
[1747061002300,0.02900904,103410.0,103400.0,1.67323259]
[1747061002487,0.21274481,103410.0,103400.0,1.1601743]
[1747061002749,0.21274481,103410.0,103400.0,1.174539]
[1747061002943,0.21274481,103410.0,103400.0,1.70962484]
[1747061003147,0.21274481,103410.0,103400.0,1.80360484]
[1747061003351,0.21274481,103410.0,103400.0,2.12592484]
[1747061003593,0.21274481,103410.0,103400.0,1.911159]
[1747061003815,0.21274481,103410.0,103400.0,1.47862]
[1747061004053,0.21374481,103410.0,103400.0,0.4163]
[1747061004275,0.24684481,103410.0,103400.0,0.32232]
[1747061004491,0.24784481,103410.0,103400.0,0.32232]
[1747061004919,0.24784481,103410.0,103400.0,0.66232]
[1747061005136,0.21474481,103410.0,103400.0,0.85574359]
[1747061005400,0.22441505,103410.0,103400.0,1.19242829]
[1747061005613,0.27724518,103410.0,103400.0,0.34]
[1747061006018,0.26749458,103400.0,103390.0,0.00022]
[1747061006190,0.23539458,103400.0,103390.0,0.34022]
[1747061006424,0.21276547,103400.0,103390.0,0.6769047]
[1747061006653,0.21276547,103400.0,103390.0,0.88969094]
[1747061006974,0.22243664,103400.0,103390.0,0.88969094]
[1747061007731,0.02134114,103400.0,103390.0,0.89936183]
[1747061007971,0.005,103400.0,103390.0,1.07309017]
[1747061008172,0.005,103400.0,103390.0,3.95495617]
[1747061008548,0.005,103400.0,103390.0,4.29164087]
[1747061008756,0.005,103400.0,103390.0,3.95495617]
[1747061009183,0.005,103400.0,103390.0,2.65015017]
[1747061009673,0.005,103400.0,103390.0,1.13629017]
[1747061009876,0.23208446,103410.0,103400.0,0.22243599]
[1747061010034,0.22241487,103410.0,103400.0,0.97563367]
[1747061010255,0.212745,103410.0,103400.0,0.97563367]
[1747061010861,0.212745,103410.0,103400.0,1.38530466]
[1747061011076,0.213745,103410.0,103400.0,1.39497546]
[1747061011275,0.213745,103410.0,103400.0,0.99497546]
[1747061011490,0.01066968,103410.0,103400.0,1.01431669]
[1747061011706,0.02033889,103410.0,103400.0,3.23500969]
[1747061011907,0.03967871,103410.0,103400.0,3.23500969]
[1747061012107,0.03967871,103410.0,103400.0,2.83500969]
[1747061012314,0.24275459,103410.0,103400.0,0.98530466]
[1747061012524,0.2330851,103410.0,103400.0,1.00464626]
[1747061012757,0.2330851,103410.0,103400.0,1.41428937]
[1747061013126,0.02033982,103410.0,103400.0,1.56921589]
[1747061013328,0.03967927,103410.0,103400.0,1.56921589]
[1747061013619,0.24275431,103410.0,103400.0,1.56921589]
[1747061014029,0.23308482,103410.0,103400.0,1.41428937]
[1747061014250,0.001,103410.0,103400.0,1.76064459]
[1747061014490,0.001,103410.0,103400.0,4.82364459]
[1747061014815,0.001,103410.0,103400.0,3.34285659]
[1747061015025,0.001,103410.0,103400.0,3.00617189]
[1747061015484,0.001,103410.0,103400.0,3.34285659]
[1747061015706,0.001,103410.0,103400.0,2.28350089]
[1747061015843,0.001,103410.0,103400.0,2.62018559]
[1747061016968,0.001,103410.0,103400.0,1.94681619]
[1747061017191,0.001,103410.0,103400.0,2.62018559]
[1747061017589,0.20310294,103440.0,103430.0,0.19336749]
[1747061017831,0.20310294,103440.0,103430.0,0.34632781]
[1747061018211,0.0193316,103450.0,103440.0,0.22235007]
[1747061018423,0.22232877,103450.0,103440.0,0.3366847]
[1747061018614,0.20301605,103440.0,103430.0,0.78218211]
[1747061018816,0.2126832,103440.0,103430.0,0.78218211]
[1747061019016,0.2126832,103440.0,103430.0,0.98521778]
[1747061019235,0.2126832,103440.0,103430.0,1.04385736]
[1747061019434,0.20301567,103440.0,103430.0,2.4266219]
[1747061019593,0.23201685,103440.0,103430.0,2.73459655]
[1747061019795,0.23401685,103440.0,103430.0,2.73459655]
[1747061020102,0.23601685,103440.0,103430.0,2.73459655]
[1747061020298,0.21668339,103440.0,103430.0,1.2311536]
[1747061020771,0.28048339,103440.0,103430.0,1.1176546]
[1747061021018,0.28048339,103440.0,103430.0,1.4543393]
[1747061021218,0.28048339,103440.0,103430.0,1.25737516]
[1747061021219,0.21668339,103440.0,103430.0,1.25737516]
[1747061021375,0.20701624,103440.0,103430.0,1.0543393]
[1747061023357,0.27081624,103440.0,103430.0,0.3776546]
[1747061023587,0.27081624,103440.0,103430.0,0.0586146]
[1747061023813,0.36667054,103440.0,103430.0,0.01928985]
[1747061024037,0.36667054,103440.0,103430.0,0.00964674]
[1747061025403,0.36667054,103440.0,103430.0,0.00968674]
[1747061025862,0.27081624,103440.0,103430.0,0.15108264]
[1747061026083,0.20303567,103430.0,103420.0,1.03453414]
[1747061027316,0.20403567,103430.0,103420.0,1.03453414]
[1747061027545,0.20403567,103430.0,103420.0,1.22792033]
[1747061027773,0.20403567,103430.0,103420.0,1.03453414]
[1747061027993,0.21370376,103430.0,103420.0,1.23758945]
[1747061028274,0.21370376,103430.0,103420.0,1.23758963]
[1747061028479,0.20403567,103430.0,103420.0,1.23758963]
[1747061029124,0.21370357,103430.0,103420.0,1.57504642]
[1747061029354,0.23303947,103430.0,103420.0,1.56537777]
[1747061029618,0.21370395,103430.0,103420.0,1.23758963]
[1747061029839,0.20403577,103430.0,103420.0,1.03453414]
[1747061030485,0.20403577,103430.0,103420.0,0.69784944]
[1747061030695,0.20394743,103430.0,103420.0,1.03453414]
[1747061032177,0.20394743,103430.0,103420.0,0.69784944]
[1747061032395,0.20394743,103430.0,103420.0,1.03453414]
[1747061033946,0.20394743,103430.0,103420.0,0.37880944]
[1747061034159,0.23724743,103430.0,103420.0,0.37880944]
[1747061035016,0.23724743,103430.0,103420.0,0.34]
[1747061035231,0.23565531,103420.0,103410.0,0.42728311]
[1747061035439,0.26715531,103420.0,103410.0,0.42728311]
[1747061035649,0.36300961,103420.0,103410.0,4e-05]
[1747061035854,0.36300961,103420.0,103410.0,0.37566298]
[1747061036049,0.20305531,103420.0,103410.0,0.34636781]
[1747061036522,0.20305531,103420.0,103410.0,0.5407727]
[1747061036735,0.20305531,103420.0,103410.0,0.96831689]
[1747061036938,0.1933488,103440.0,103420.0,0.01933814]
[1747061037146,0.21270329,103430.0,103420.0,0.61602433]
[1747061037400,0.21270329,103430.0,103420.0,0.93506433]
[1747061037603,0.01933552,103430.0,103420.0,0.94473298]
[1747061037803,0.02900352,103430.0,103420.0,2.59094698]
[1747061038011,0.0386717,103430.0,103420.0,2.59094698]
[1747061038184,0.01933543,103430.0,103420.0,2.59094698]
[1747061038388,0.02900343,103430.0,103420.0,2.34002668]
[1747061038614,0.02900343,103430.0,103420.0,2.30628568]
[1747061038816,0.03867161,103430.0,103420.0,2.30628568]
[1747061039023,0.03867161,103430.0,103420.0,2.19051568]
[1747061039634,0.04833989,103430.0,103420.0,2.19051568]
[1747061039845,0.01933543,103430.0,103420.0,2.19051568]
[1747061040081,0.02900343,103430.0,103420.0,2.19051568]
[1747061040292,0.01933552,103430.0,103420.0,2.28636998]
[1747061041088,0.01933543,103430.0,103420.0,2.68636998]
[1747061041517,0.01933253,103450.0,103440.0,0.23201723]
[1747061041725,0.22232858,103450.0,103440.0,0.90867826]
[1747061042140,0.21266264,103450.0,103440.0,0.9629112]
[1747061042343,0.20299642,103450.0,103440.0,0.9629112]
[1747061042787,0.21099642,103450.0,103440.0,0.9629112]
[1747061042995,0.19733011,103450.0,103440.0,0.88934405]
[1747061043219,0.19733011,103450.0,103440.0,0.34964311]
[1747061043220,0.19333011,103450.0,103440.0,0.34964311]
[1747061043436,0.25653011,103450.0,103440.0,0.00964311]
[1747061043688,0.37272104,103450.0,103440.0,0.00964311]
[1747061044109,0.35818019,103450.0,103440.0,0.00964311]
[1747061046651,0.29698019,103450.0,103440.0,0.00964311]
[1747061046888,0.01746219,103450.0,103440.0,0.00964311]
[1747061047126,0.01746219,103450.0,103440.0,0.88934386]
[1747061047127,0.23012474,103450.0,103440.0,0.88934386]
[1747061047370,0.22045861,103450.0,103440.0,0.68632781]
[1747061047619,0.22045861,103450.0,103440.0,0.34964311]
[1747061047843,0.22045861,103450.0,103440.0,0.68632781]
[1747061049138,0.22045861,103450.0,103440.0,0.34964311]
[1747061049361,0.34781291,103450.0,103440.0,0.00964311]
[1747061049583,0.31631291,103450.0,103440.0,0.00964311]